[Event "Titled Tuesday Blitz November 22 Early 2022"]
[White "Vaishali, Rameshbabu"]
[Black "Timofeev, Artyom"]
[WhiteFideId "5091756"]
[BlackFideId "4140419"]
[WhiteElo "2351"]
[BlackElo "2586"]
[Result "1-0"]
[Round "09"]
[TimeControl "180+1"]
[Date "2022.11.22"]
[WhiteClock "0:00:05"]
[BlackClock "0:00:45"]

1. Nf3 {[%clk 0:03:00]}  Nf6 {[%clk 0:02:58]} 2. g3 {[%clk 0:03:00]}  g6 {[%clk 0:02:58]} 3. Bg2 {[%clk 0:02:58]}  Bg7 {[%clk 0:02:57]} 4. O-O {[%clk 0:02:59]}  O-O {[%clk 0:02:57]} 5. d4 {[%clk 0:02:59]}  d5 {[%clk 0:02:57]} 6. c4 {[%clk 0:02:58]}  dxc4 {[%clk 0:02:57]} 7. Na3 {[%clk 0:02:55]}  c6 {[%clk 0:02:57]} 8. Nxc4 {[%clk 0:02:55]}  Be6 {[%clk 0:02:57]} 9. b3 {[%clk 0:02:29]}  Bd5 {[%clk 0:02:56]} 10. Bb2 {[%clk 0:02:29]}  Nbd7 {[%clk 0:02:55]} 11. Rc1 {[%clk 0:02:28]}  a5 {[%clk 0:02:54]} 12. Nfe5 {[%clk 0:02:24]}  Bxg2 {[%clk 0:02:52]} 13. Kxg2 {[%clk 0:02:25]}  Ne4 {[%clk 0:02:41]} 14. Nxd7 {[%clk 0:02:16]}  Qxd7 {[%clk 0:02:38]} 15. Nb6 {[%clk 0:02:16]}  Qe6 {[%clk 0:02:36]} 16. Nxa8 {[%clk 0:02:16]}  Rxa8 {[%clk 0:02:36]} 17. f3 {[%clk 0:02:16]}  Nd6 {[%clk 0:02:29]} 18. e4 {[%clk 0:02:13]}  a4 {[%clk 0:02:29]} 19. Rf2 {[%clk 0:01:53]}  axb3 {[%clk 0:02:22]} 20. axb3 {[%clk 0:01:49]}  Qd7 {[%clk 0:02:13]} 21. d5 {[%clk 0:01:37]}  cxd5 {[%clk 0:01:57]} 22. Qxd5 {[%clk 0:01:36]}  e6 {[%clk 0:01:46]} 23. Qd3 {[%clk 0:01:32]}  Bxb2 {[%clk 0:01:37]} 24. Rxb2 {[%clk 0:01:33]}  Qe7 {[%clk 0:01:37]} 25. Rd2 {[%clk 0:01:31]}  Ne8 {[%clk 0:01:31]} 26. Qd7 {[%clk 0:01:27]}  Qb4 {[%clk 0:01:30]} 27. Rc4 {[%clk 0:01:07]}  Qxb3 {[%clk 0:01:18]} 28. Rc8 {[%clk 0:00:33]}  Rxc8 {[%clk 0:01:17]} 29. Qxc8 {[%clk 0:00:34]}  Kf8 {[%clk 0:01:18]} 30. Qc5+ {[%clk 0:00:32]}  Kg7 {[%clk 0:01:17]} 31. Rd8 {[%clk 0:00:24]}  Qa2+ {[%clk 0:00:52]} 32. Kh3 {[%clk 0:00:16]}  Qa4 {[%clk 0:00:47]} 33. Qd4+ {[%clk 0:00:05]}  Nf6 {[%clk 0:00:45]} 34. Qxa4 {[%clk 0:00:05]} 1-0


[Site "https://www.chess.com"]

[Event "Titled Tuesday Blitz November 22 Early 2022"]
[White "Van Osch, Mees"]
[Black "Omariev, Maksim"]
[WhiteFideId "1035967"]
[BlackFideId "4193423"]
[WhiteElo "2324"]
[BlackElo "2416"]
[Result "1-0"]
[Round "09"]
[TimeControl "180+1"]
[Date "2022.11.23"]
[WhiteClock "0:01:16"]
[BlackClock "0:00:46"]

1. e4 {[%clk 0:02:55]}  c5 {[%clk 0:02:57]} 2. Nf3 {[%clk 0:02:54]}  d6 {[%clk 0:02:57]} 3. d4 {[%clk 0:02:51]}  cxd4 {[%clk 0:02:58]} 4. Nxd4 {[%clk 0:02:52]}  Nf6 {[%clk 0:02:59]} 5. Nc3 {[%clk 0:02:52]}  a6 {[%clk 0:02:59]} 6. Nb3 {[%clk 0:02:53]}  e6 {[%clk 0:02:59]} 7. g4 {[%clk 0:02:49]}  Be7 {[%clk 0:02:59]} 8. g5 {[%clk 0:02:49]}  Nfd7 {[%clk 0:02:59]} 9. h4 {[%clk 0:02:50]}  b5 {[%clk 0:03:00]} 10. f4 {[%clk 0:02:49]}  Bb7 {[%clk 0:03:00]} 11. Bg2 {[%clk 0:02:50]}  b4 {[%clk 0:02:54]} 12. Ne2 {[%clk 0:02:44]}  a5 {[%clk 0:02:55]} 13. Be3 {[%clk 0:02:43]}  a4 {[%clk 0:02:47]} 14. Nbd4 {[%clk 0:02:43]}  Qa5 {[%clk 0:02:48]} 15. Ng3 {[%clk 0:02:39]}  b3+ {[%clk 0:02:39]} 16. c3 {[%clk 0:02:36]}  bxa2 {[%clk 0:02:38]} 17. O-O {[%clk 0:02:30]}  g6 {[%clk 0:01:59]} 18. f5 {[%clk 0:02:25]}  gxf5 {[%clk 0:01:59]} 19. exf5 {[%clk 0:02:23]}  Bxg2 {[%clk 0:02:00]} 20. Kxg2 {[%clk 0:02:15]}  e5 {[%clk 0:02:00]} 21. Nc2 {[%clk 0:02:03]}  f6 {[%clk 0:01:52]} 22. Qh5+ {[%clk 0:01:58]}  Kd8 {[%clk 0:01:52]} 23. Nb4 {[%clk 0:01:56]}  Na6 {[%clk 0:01:46]} 24. Nc6+ {[%clk 0:01:56]}  Kc7 {[%clk 0:01:08]} 25. Nxa5 {[%clk 0:01:54]}  Nac5 {[%clk 0:01:08]} 26. Nc4 {[%clk 0:01:48]}  d5 {[%clk 0:01:02]} 27. Qf7 {[%clk 0:01:45]}  dxc4 {[%clk 0:01:00]} 28. Qxe7 {[%clk 0:01:45]}  Nd3 {[%clk 0:00:53]} 29. Ne4 {[%clk 0:01:41]}  Ra6 {[%clk 0:00:50]} 30. Nxf6 {[%clk 0:01:31]}  Rd8 {[%clk 0:00:44]} 31. Rxa2 {[%clk 0:01:21]}  Kc8 {[%clk 0:00:43]} 32. Nxd7 {[%clk 0:01:19]}  Rxd7 {[%clk 0:00:44]} 33. Qe8+ {[%clk 0:01:17]}  Kc7 {[%clk 0:00:44]} 34. f6 {[%clk 0:01:10]}  Rd8 {[%clk 0:00:35]} 35. Qf7+ {[%clk 0:01:09]}  Rd7 {[%clk 0:00:35]} 36. Qxc4+ {[%clk 0:01:09]}  Rc6 {[%clk 0:00:35]} 37. Qxc6+ {[%clk 0:01:05]}  Kxc6 {[%clk 0:00:35]} 38. f7 {[%clk 0:01:06]}  Nf4+ {[%clk 0:00:35]} 39. Rxf4 {[%clk 0:01:05]}  exf4 {[%clk 0:00:35]} 40. f8=Q {[%clk 0:01:05]}  fxe3 {[%clk 0:00:35]} 41. Qf3+ {[%clk 0:01:06]}  Kb5 {[%clk 0:00:34]} 42. Qf5+ {[%clk 0:01:03]}  Kc6 {[%clk 0:00:34]} 43. Qxd7+ {[%clk 0:01:04]}  Kxd7 {[%clk 0:00:34]} 44. Kf3 {[%clk 0:01:04]}  h5 {[%clk 0:00:34]} 45. Kxe3 {[%clk 0:01:04]}  a3 {[%clk 0:00:35]} 46. Rxa3 {[%clk 0:01:05]}  Ke6 {[%clk 0:00:36]} 47. Ra4 {[%clk 0:01:05]}  Kf5 {[%clk 0:00:37]} 48. Rf4+ {[%clk 0:01:06]}  Kg6 {[%clk 0:00:37]} 49. Rf6+ {[%clk 0:01:07]}  Kh7 {[%clk 0:00:38]} 50. c4 {[%clk 0:01:07]}  Kg7 {[%clk 0:00:38]} 51. c5 {[%clk 0:01:08]}  Kh7 {[%clk 0:00:39]} 52. c6 {[%clk 0:01:09]}  Kg7 {[%clk 0:00:40]} 53. b3 {[%clk 0:01:10]}  Kh8 {[%clk 0:00:40]} 54. b4 {[%clk 0:01:10]}  Kg7 {[%clk 0:00:41]} 55. b5 {[%clk 0:01:11]}  Kg8 {[%clk 0:00:42]} 56. b6 {[%clk 0:01:12]}  Kg7 {[%clk 0:00:43]} 57. c7 {[%clk 0:01:13]}  Kg8 {[%clk 0:00:44]} 58. b7 {[%clk 0:01:14]}  Kg7 {[%clk 0:00:44]} 59. Kf4 {[%clk 0:01:15]}  Kh7 {[%clk 0:00:45]} 60. Kf5 {[%clk 0:01:16]}  Kg7 {[%clk 0:00:46]} 61. Ke6 {[%clk 0:01:15]}  Kh7 {[%clk 0:00:46]} 62. Kf7 {[%clk 0:01:15]}  Kh8 {[%clk 0:00:46]} 63. Kg6 {[%clk 0:01:15]}  Kg8 {[%clk 0:00:46]} 64. c8=Q# {[%clk 0:01:16]} 1-0


[Site "https://www.chess.com"]

[Event "Titled Tuesday Blitz November 22 Early 2022"]
[White "Vifleemskaia, Svetlana"]
[Black "Rosh Jain"]
[WhiteFideId "4129490"]
[BlackFideId "25789465"]
[WhiteElo "1929"]
[BlackElo "2233"]
[Result "1-0"]
[Round "09"]
[TimeControl "180+1"]
[Date "2022.11.23"]
[WhiteClock "0:00:09"]
[BlackClock "0:00:07"]

1. d4 {[%clk 0:03:00]}  Nf6 {[%clk 0:02:52]} 2. c4 {[%clk 0:02:58]}  e6 {[%clk 0:02:52]} 3. Nc3 {[%clk 0:02:57]}  d5 {[%clk 0:02:53]} 4. cxd5 {[%clk 0:02:57]}  exd5 {[%clk 0:02:54]} 5. Bg5 {[%clk 0:02:57]}  c6 {[%clk 0:02:52]} 6. e3 {[%clk 0:02:55]}  Be7 {[%clk 0:02:52]} 7. Bd3 {[%clk 0:02:54]}  Nbd7 {[%clk 0:02:52]} 8. Nf3 {[%clk 0:02:54]}  O-O {[%clk 0:02:52]} 9. O-O {[%clk 0:02:54]}  h6 {[%clk 0:02:51]} 10. Bf4 {[%clk 0:02:49]}  Re8 {[%clk 0:02:51]} 11. h3 {[%clk 0:02:48]}  Nf8 {[%clk 0:02:50]} 12. Ne5 {[%clk 0:02:45]}  Ne6 {[%clk 0:02:49]} 13. Bh2 {[%clk 0:02:43]}  Nd7 {[%clk 0:02:47]} 14. f4 {[%clk 0:02:40]}  Bf6 {[%clk 0:02:37]} 15. Rb1 {[%clk 0:02:24]}  a5 {[%clk 0:02:33]} 16. Qh5 {[%clk 0:02:14]}  Qe7 {[%clk 0:02:32]} 17. Kh1 {[%clk 0:01:45]}  Ndf8 {[%clk 0:02:24]} 18. Na4 {[%clk 0:01:37]}  g6 {[%clk 0:02:24]} 19. Qf3 {[%clk 0:01:19]}  Ng7 {[%clk 0:02:14]} 20. g4 {[%clk 0:01:16]}  Nfe6 {[%clk 0:02:10]} 21. Nb6 {[%clk 0:01:09]}  Rb8 {[%clk 0:02:09]} 22. Kg2 {[%clk 0:01:05]}  Qd8 {[%clk 0:01:31]} 23. Nxc8 {[%clk 0:00:49]}  Rxc8 {[%clk 0:01:32]} 24. Bg3 {[%clk 0:00:42]}  c5 {[%clk 0:01:21]} 25. Bb5 {[%clk 0:00:36]}  Re7 {[%clk 0:01:19]} 26. h4 {[%clk 0:00:27]}  cxd4 {[%clk 0:01:16]} 27. f5 {[%clk 0:00:21]}  Rc2+ {[%clk 0:01:11]} 28. Kh3 {[%clk 0:00:19]}  Nc5 {[%clk 0:00:43]} 29. exd4 {[%clk 0:00:17]}  Ne4 {[%clk 0:00:43]} 30. fxg6 {[%clk 0:00:14]}  Nxg3 {[%clk 0:00:42]} 31. gxf7+ {[%clk 0:00:14]}  Kf8 {[%clk 0:00:34]} 32. Qxg3 {[%clk 0:00:11]}  Bxe5 {[%clk 0:00:31]} 33. dxe5 {[%clk 0:00:10]}  Qc7 {[%clk 0:00:29]} 34. Bd3 {[%clk 0:00:07]}  Rd2 {[%clk 0:00:26]} 35. Bg6 {[%clk 0:00:07]}  Rxe5 {[%clk 0:00:24]} 36. Rf3 {[%clk 0:00:06]}  Ne6 {[%clk 0:00:14]} 37. Re1 {[%clk 0:00:03]}  Nf4+ {[%clk 0:00:08]} 38. Qxf4 {[%clk 0:00:02]}  Rf5 {[%clk 0:00:05]} 39. Qxc7 {[%clk 0:00:01]}  Rxf3+ {[%clk 0:00:05]} 40. Qg3 {[%clk 0:00:02]}  Rxg3+ {[%clk 0:00:05]} 41. Kxg3 {[%clk 0:00:03]}  Rd3+ {[%clk 0:00:06]} 42. Kf4 {[%clk 0:00:02]}  Rd4+ {[%clk 0:00:05]} 43. Kf5 {[%clk 0:00:02]}  Re4 {[%clk 0:00:05]} 44. Rxe4 {[%clk 0:00:02]}  dxe4 {[%clk 0:00:06]} 45. Kxe4 {[%clk 0:00:03]}  h5 {[%clk 0:00:06]} 46. Kf5 {[%clk 0:00:03]}  hxg4 {[%clk 0:00:05]} 47. Kxg4 {[%clk 0:00:04]}  b5 {[%clk 0:00:05]} 48. Kg5 {[%clk 0:00:05]}  a4 {[%clk 0:00:05]} 49. h5 {[%clk 0:00:06]}  a3 {[%clk 0:00:05]} 50. h6 {[%clk 0:00:07]}  axb2 {[%clk 0:00:05]} 51. h7 {[%clk 0:00:06]}  b1=Q {[%clk 0:00:04]} 52. Bxb1 {[%clk 0:00:06]}  Kg7 {[%clk 0:00:04]} 53. f8=Q+ {[%clk 0:00:06]}  Kxf8 {[%clk 0:00:04]} 54. h8=Q+ {[%clk 0:00:06]}  Ke7 {[%clk 0:00:05]} 55. Qb2 {[%clk 0:00:07]}  Kd6 {[%clk 0:00:05]} 56. Qxb5 {[%clk 0:00:07]}  Ke7 {[%clk 0:00:05]} 57. a4 {[%clk 0:00:08]}  Kf8 {[%clk 0:00:06]} 58. a5 {[%clk 0:00:09]}  Kg7 {[%clk 0:00:07]} 59. a6 {[%clk 0:00:10]}  Kg8 {[%clk 0:00:07]} 60. a7 {[%clk 0:00:11]}  Kg7 {[%clk 0:00:07]} 61. a8=Q {[%clk 0:00:10]}  Kf7 {[%clk 0:00:08]} 62. Qf3+ {[%clk 0:00:09]}  Kg7 {[%clk 0:00:07]} 63. Qf6+ {[%clk 0:00:09]}  Kg8 {[%clk 0:00:07]} 64. Qe8# {[%clk 0:00:09]} 1-0


[Site "https://www.chess.com"]

[Event "Titled Tuesday Blitz November 22 Early 2022"]
[White "Weetik, Vjacheslav"]
[Black "Kvaloy, Aksel Bu"]
[WhiteFideId "4153472"]
[BlackFideId "1528815"]
[WhiteElo "2469"]
[BlackElo "2184"]
[Result "0-1"]
[Round "09"]
[TimeControl "180+1"]
[Date "2022.11.23"]
[WhiteClock "0:00:02"]
[BlackClock "0:00:32"]

1. d4 {[%clk 0:02:49]}  Nf6 {[%clk 0:02:59]} 2. Nf3 {[%clk 0:02:49]}  e6 {[%clk 0:02:58]} 3. c4 {[%clk 0:02:48]}  d5 {[%clk 0:02:55]} 4. g3 {[%clk 0:02:48]}  dxc4 {[%clk 0:02:54]} 5. Bg2 {[%clk 0:02:48]}  c6 {[%clk 0:02:54]} 6. O-O {[%clk 0:02:46]}  b5 {[%clk 0:02:54]} 7. Ne5 {[%clk 0:02:44]}  Bb7 {[%clk 0:02:53]} 8. b3 {[%clk 0:02:40]}  cxb3 {[%clk 0:02:50]} 9. Qxb3 {[%clk 0:02:38]}  Qxd4 {[%clk 0:02:50]} 10. Bb2 {[%clk 0:02:37]}  Qb4 {[%clk 0:02:50]} 11. Qc2 {[%clk 0:02:34]}  Qc5 {[%clk 0:02:49]} 12. Qb3 {[%clk 0:02:31]}  Qb4 {[%clk 0:02:47]} 13. Qc2 {[%clk 0:02:28]}  Qc5 {[%clk 0:02:47]} 14. Qd3 {[%clk 0:02:01]}  Be7 {[%clk 0:02:42]} 15. Nd2 {[%clk 0:01:44]}  O-O {[%clk 0:02:34]} 16. Ne4 {[%clk 0:01:38]}  Nxe4 {[%clk 0:02:33]} 17. Bxe4 {[%clk 0:01:39]}  f5 {[%clk 0:02:26]} 18. Bg2 {[%clk 0:01:34]}  Bf6 {[%clk 0:02:25]} 19. Rac1 {[%clk 0:01:21]}  Qe7 {[%clk 0:02:21]} 20. Rfd1 {[%clk 0:01:11]}  Rd8 {[%clk 0:02:14]} 21. Qb3 {[%clk 0:01:02]}  Bxe5 {[%clk 0:02:07]} 22. Bxe5 {[%clk 0:00:53]}  Na6 {[%clk 0:01:54]} 23. Rxd8+ {[%clk 0:00:37]}  Rxd8 {[%clk 0:01:54]} 24. Bxc6 {[%clk 0:00:37]}  Rc8 {[%clk 0:01:47]} 25. Qxb5 {[%clk 0:00:36]}  Nb4 {[%clk 0:01:47]} 26. Bxb7 {[%clk 0:00:12]}  Rxc1+ {[%clk 0:01:46]} 27. Kg2 {[%clk 0:00:13]}  Nxa2 {[%clk 0:01:34]} 28. Bf3 {[%clk 0:00:12]}  Rc8 {[%clk 0:01:28]} 29. Qa6 {[%clk 0:00:08]}  Rc2 {[%clk 0:01:23]} 30. Qa4 {[%clk 0:00:05]}  Nb4 {[%clk 0:01:16]} 31. Qb5 {[%clk 0:00:03]}  Rc8 {[%clk 0:01:16]} 32. Qa5 {[%clk 0:00:03]}  a6 {[%clk 0:01:16]} 33. Qb6 {[%clk 0:00:03]}  Kf7 {[%clk 0:00:34]} 34. Bd6 {[%clk 0:00:02]}  Rc6 {[%clk 0:00:35]} 35. Qxc6 {[%clk 0:00:01]}  Nxc6 {[%clk 0:00:35]} 36. Bxe7 {[%clk 0:00:02]}  Nxe7 {[%clk 0:00:36]} 37. Bb7 {[%clk 0:00:02]}  a5 {[%clk 0:00:36]} 38. Kf3 {[%clk 0:00:02]}  e5 {[%clk 0:00:34]} 39. Ke3 {[%clk 0:00:03]}  Ke6 {[%clk 0:00:35]} 40. Kd3 {[%clk 0:00:04]}  Kd6 {[%clk 0:00:35]} 41. Kc4 {[%clk 0:00:04]}  Nc6 {[%clk 0:00:35]} 42. Kb5 {[%clk 0:00:05]}  Nd4+ {[%clk 0:00:35]} 43. Kxa5 {[%clk 0:00:05]}  Nxe2 {[%clk 0:00:35]} 44. Kb4 {[%clk 0:00:06]}  e4 {[%clk 0:00:34]} 45. Kc4 {[%clk 0:00:06]}  Ke5 {[%clk 0:00:33]} 46. Bd5 {[%clk 0:00:06]}  g5 {[%clk 0:00:33]} 47. Bg8 {[%clk 0:00:06]}  h5 {[%clk 0:00:33]} 48. Bf7 {[%clk 0:00:03]}  h4 {[%clk 0:00:34]} 49. Be8 {[%clk 0:00:03]}  h3 {[%clk 0:00:32]} 50. Bc6 {[%clk 0:00:02]}  g4 {[%clk 0:00:32]} 0-1


[Site "https://www.chess.com"]

[Event "Titled Tuesday Blitz November 22 Early 2022"]
[White "Yuan, Qingyu"]
[Black "Farmani Anosheh, Armin"]
[WhiteFideId "8609772"]
[BlackFideId "24613240"]
[WhiteElo "2359"]
[BlackElo "2289"]
[Result "1-0"]
[Round "09"]
[TimeControl "180+1"]
[Date "2022.11.23"]
[WhiteClock "0:00:10"]
[BlackClock "0:00:04"]

1. e4 {[%clk 0:03:00]}  e5 {[%clk 0:03:00]} 2. Nf3 {[%clk 0:03:01]}  Nc6 {[%clk 0:03:00]} 3. Bb5 {[%clk 0:03:00]}  Nf6 {[%clk 0:03:00]} 4. d3 {[%clk 0:03:00]}  Bc5 {[%clk 0:02:59]} 5. O-O {[%clk 0:02:59]}  d6 {[%clk 0:02:52]} 6. c3 {[%clk 0:02:45]}  O-O {[%clk 0:02:46]} 7. d4 {[%clk 0:02:43]}  Bb6 {[%clk 0:02:45]} 8. Bg5 {[%clk 0:02:24]}  h6 {[%clk 0:02:37]} 9. Bh4 {[%clk 0:02:11]}  Bd7 {[%clk 0:02:04]} 10. Nbd2 {[%clk 0:01:44]}  Nxd4 {[%clk 0:01:47]} 11. Bxd7 {[%clk 0:01:30]}  Nxf3+ {[%clk 0:01:47]} 12. Qxf3 {[%clk 0:01:29]}  Qxd7 {[%clk 0:01:47]} 13. Bxf6 {[%clk 0:01:28]}  gxf6 {[%clk 0:01:48]} 14. Qxf6 {[%clk 0:01:23]}  Qe6 {[%clk 0:01:47]} 15. Qh4 {[%clk 0:01:13]}  Kh7 {[%clk 0:01:46]} 16. Kh1 {[%clk 0:01:12]}  Rg8 {[%clk 0:01:46]} 17. h3 {[%clk 0:01:08]}  f5 {[%clk 0:01:34]} 18. f4 {[%clk 0:00:58]}  Be3 {[%clk 0:01:09]} 19. exf5 {[%clk 0:00:50]}  Qd5 {[%clk 0:01:10]} 20. Nf3 {[%clk 0:00:48]}  Bxf4 {[%clk 0:01:10]} 21. b3 {[%clk 0:00:29]}  Bg3 {[%clk 0:00:53]} 22. Qh5 {[%clk 0:00:27]}  Raf8 {[%clk 0:00:50]} 23. Rad1 {[%clk 0:00:25]}  Qe4 {[%clk 0:00:50]} 24. Nd2 {[%clk 0:00:19]}  Qc2 {[%clk 0:00:44]} 25. Qf3 {[%clk 0:00:17]}  Bf4 {[%clk 0:00:35]} 26. Ne4 {[%clk 0:00:13]}  Rxf5 {[%clk 0:00:28]} 27. g3 {[%clk 0:00:13]}  Rg6 {[%clk 0:00:19]} 28. Rf2 {[%clk 0:00:13]}  Bd2 {[%clk 0:00:14]} 29. Rdxd2 {[%clk 0:00:09]}  Qb1+ {[%clk 0:00:05]} 30. Rd1 {[%clk 0:00:04]}  Rxf3 {[%clk 0:00:04]} 31. Rxb1 {[%clk 0:00:04]}  Rxf2 {[%clk 0:00:05]} 32. Nxf2 {[%clk 0:00:05]}  Rxg3 {[%clk 0:00:06]} 33. Rc1 {[%clk 0:00:04]}  Rf3 {[%clk 0:00:06]} 34. Kg2 {[%clk 0:00:05]}  Re3 {[%clk 0:00:07]} 35. c4 {[%clk 0:00:05]}  Re2 {[%clk 0:00:07]} 36. Ra1 {[%clk 0:00:05]}  Kg6 {[%clk 0:00:06]} 37. Kf3 {[%clk 0:00:05]}  Rb2 {[%clk 0:00:06]} 38. Ke3 {[%clk 0:00:05]}  a5 {[%clk 0:00:06]} 39. Nd3 {[%clk 0:00:03]}  Rh2 {[%clk 0:00:06]} 40. Nf2 {[%clk 0:00:04]}  h5 {[%clk 0:00:06]} 41. Kf3 {[%clk 0:00:05]}  Kf5 {[%clk 0:00:06]} 42. Kg3 {[%clk 0:00:04]}  Rxf2 {[%clk 0:00:03]} 43. Kxf2 {[%clk 0:00:05]}  c6 {[%clk 0:00:04]} 44. Rd1 {[%clk 0:00:05]}  Ke6 {[%clk 0:00:04]} 45. Ke3 {[%clk 0:00:06]}  d5 {[%clk 0:00:05]} 46. cxd5+ {[%clk 0:00:07]}  cxd5 {[%clk 0:00:05]} 47. Rg1 {[%clk 0:00:08]}  Kf6 {[%clk 0:00:05]} 48. Rf1+ {[%clk 0:00:08]}  Ke6 {[%clk 0:00:06]} 49. Rg1 {[%clk 0:00:09]}  Kf6 {[%clk 0:00:06]} 50. Rg8 {[%clk 0:00:09]}  Kf5 {[%clk 0:00:05]} 51. h4 {[%clk 0:00:08]}  d4+ {[%clk 0:00:05]} 52. Kd3 {[%clk 0:00:08]}  Kf4 {[%clk 0:00:05]} 53. Rg5 {[%clk 0:00:08]}  e4+ {[%clk 0:00:04]} 54. Kxd4 {[%clk 0:00:09]}  e3 {[%clk 0:00:04]} 55. Re5 {[%clk 0:00:10]}  Kg4 {[%clk 0:00:04]} 56. Re4+ {[%clk 0:00:10]}  Kf3 {[%clk 0:00:04]} 57. Rxe3+ {[%clk 0:00:10]} 1-0


[Site "https://www.chess.com"]

[Event "Titled Tuesday Blitz November 22 Early 2022"]
[White "Zaichenko, Daria"]
[Black "Khamdamova, Afruza"]
[WhiteFideId "4197453"]
[BlackFideId "14210444"]
[WhiteElo "2039"]
[BlackElo "2018"]
[Result "0-1"]
[Round "09"]
[TimeControl "180+1"]
[Date "2022.11.23"]
[WhiteClock "0:00:39"]
[BlackClock "0:00:07"]

1. e4 {[%clk 0:02:59]}  e5 {[%clk 0:02:59]} 2. Nf3 {[%clk 0:02:59]}  Nc6 {[%clk 0:02:59]} 3. Bc4 {[%clk 0:02:58]}  Nf6 {[%clk 0:02:59]} 4. d3 {[%clk 0:02:57]}  Bc5 {[%clk 0:02:57]} 5. c3 {[%clk 0:02:57]}  d6 {[%clk 0:02:57]} 6. Bb3 {[%clk 0:02:57]}  a5 {[%clk 0:02:56]} 7. a4 {[%clk 0:02:56]}  O-O {[%clk 0:02:56]} 8. O-O {[%clk 0:02:55]}  h6 {[%clk 0:02:53]} 9. Nbd2 {[%clk 0:02:53]}  Be6 {[%clk 0:02:52]} 10. Re1 {[%clk 0:02:53]}  Qd7 {[%clk 0:02:43]} 11. Nf1 {[%clk 0:02:52]}  Ng4 {[%clk 0:02:28]} 12. Re2 {[%clk 0:02:51]}  f5 {[%clk 0:02:04]} 13. exf5 {[%clk 0:02:50]}  Bxb3 {[%clk 0:01:43]} 14. Qxb3+ {[%clk 0:02:48]}  Kh7 {[%clk 0:01:41]} 15. Ng3 {[%clk 0:02:44]}  d5 {[%clk 0:01:24]} 16. h3 {[%clk 0:02:42]}  Nxf2 {[%clk 0:01:04]} 17. Rxf2 {[%clk 0:02:32]}  Bxf2+ {[%clk 0:01:03]} 18. Kxf2 {[%clk 0:02:32]}  e4 {[%clk 0:01:02]} 19. dxe4 {[%clk 0:02:27]}  dxe4 {[%clk 0:01:02]} 20. Nh4 {[%clk 0:02:27]}  Ne5 {[%clk 0:00:57]} 21. Be3 {[%clk 0:02:25]}  Qd6 {[%clk 0:00:55]} 22. Nxe4 {[%clk 0:02:06]}  Nd3+ {[%clk 0:00:48]} 23. Kg1 {[%clk 0:02:05]}  Qe7 {[%clk 0:00:46]} 24. Ng6 {[%clk 0:01:48]}  Qxe4 {[%clk 0:00:45]} 25. Nxf8+ {[%clk 0:01:48]}  Rxf8 {[%clk 0:00:45]} 26. Qe6 {[%clk 0:01:39]}  Qxf5 {[%clk 0:00:36]} 27. Qxf5+ {[%clk 0:01:38]}  Rxf5 {[%clk 0:00:36]} 28. b3 {[%clk 0:01:34]}  Re5 {[%clk 0:00:35]} 29. Bd4 {[%clk 0:01:32]}  Re2 {[%clk 0:00:35]} 30. Rf1 {[%clk 0:01:31]}  Kg6 {[%clk 0:00:32]} 31. Rf8 {[%clk 0:01:27]}  c5 {[%clk 0:00:29]} 32. Rf3 {[%clk 0:01:21]}  cxd4 {[%clk 0:00:21]} 33. Rxd3 {[%clk 0:01:20]}  dxc3 {[%clk 0:00:19]} 34. Rxc3 {[%clk 0:01:20]}  Rb2 {[%clk 0:00:19]} 35. Rc5 {[%clk 0:01:17]}  b6 {[%clk 0:00:19]} 36. Rc6+ {[%clk 0:01:17]}  Kf5 {[%clk 0:00:19]} 37. Rxb6 {[%clk 0:01:17]}  Kf4 {[%clk 0:00:18]} 38. Rb7 {[%clk 0:01:13]}  g5 {[%clk 0:00:17]} 39. Kh2 {[%clk 0:01:10]}  h5 {[%clk 0:00:16]} 40. Rb5 {[%clk 0:01:03]}  g4 {[%clk 0:00:16]} 41. hxg4 {[%clk 0:01:01]}  hxg4 {[%clk 0:00:16]} 42. Rb7 {[%clk 0:00:57]}  Rb1 {[%clk 0:00:12]} 43. Rf7+ {[%clk 0:00:55]}  Kg5 {[%clk 0:00:12]} 44. Rd7 {[%clk 0:00:51]}  Rxb3 {[%clk 0:00:11]} 45. Rd5+ {[%clk 0:00:51]}  Kh4 {[%clk 0:00:10]} 46. Rb5 {[%clk 0:00:41]}  g3+ {[%clk 0:00:08]} 47. Kg1 {[%clk 0:00:40]}  Rxb5 {[%clk 0:00:04]} 48. axb5 {[%clk 0:00:40]}  a4 {[%clk 0:00:05]} 49. b6 {[%clk 0:00:41]}  a3 {[%clk 0:00:06]} 50. b7 {[%clk 0:00:41]}  a2 {[%clk 0:00:06]} 51. b8=Q {[%clk 0:00:40]}  a1=Q+ {[%clk 0:00:07]} 52. Qb1 {[%clk 0:00:39]}  Qxb1# {[%clk 0:00:07]} 0-1


[Site "https://www.chess.com"]

[Event "Titled Tuesday Blitz November 22 Early 2022"]
[White "monkins"]
[Black "Vargas, Mauricio"]
[BlackFideId "4404572"]
[WhiteElo "2154"]
[BlackElo "2025"]
[Result "1-0"]
[Round "09"]
[TimeControl "180+1"]
[Date "2022.11.23"]
[WhiteClock "0:00:54"]
[BlackClock "0:00:34"]

1. Nf3 {[%clk 0:03:00]}  Nc6 {[%clk 0:02:10]} 2. d4 {[%clk 0:02:58]}  e5 {[%clk 0:02:11]} 3. dxe5 {[%clk 0:02:58]}  Nge7 {[%clk 0:01:57]} 4. b3 {[%clk 0:02:42]}  Ng6 {[%clk 0:01:56]} 5. Bb2 {[%clk 0:02:42]}  Qe7 {[%clk 0:01:55]} 6. Nbd2 {[%clk 0:02:28]}  Ngxe5 {[%clk 0:01:54]} 7. g3 {[%clk 0:02:22]}  d6 {[%clk 0:01:44]} 8. Bg2 {[%clk 0:02:21]}  Nb4 {[%clk 0:01:37]} 9. Nxe5 {[%clk 0:02:08]}  dxe5 {[%clk 0:01:35]} 10. O-O {[%clk 0:01:43]}  Bf5 {[%clk 0:01:32]} 11. Bxb7 {[%clk 0:01:28]}  Nxc2 {[%clk 0:01:20]} 12. Bc6+ {[%clk 0:01:27]}  Kd8 {[%clk 0:01:07]} 13. Bxa8 {[%clk 0:01:26]}  Nxa1 {[%clk 0:01:06]} 14. Bxa1 {[%clk 0:01:20]}  Kc8 {[%clk 0:01:05]} 15. Bg2 {[%clk 0:01:18]}  h5 {[%clk 0:01:03]} 16. Nf3 {[%clk 0:01:13]}  f6 {[%clk 0:01:02]} 17. Nh4 {[%clk 0:01:06]}  Be6 {[%clk 0:00:56]} 18. Ng6 {[%clk 0:01:05]}  Qc5 {[%clk 0:00:44]} 19. Nxh8 {[%clk 0:01:04]}  h4 {[%clk 0:00:40]} 20. Qd3 {[%clk 0:00:55]}  hxg3 {[%clk 0:00:35]} 21. Qa6+ {[%clk 0:00:55]}  Kb8 {[%clk 0:00:34]} 22. Qb7# {[%clk 0:00:54]} 1-0


[Site "https://www.chess.com"]